bitfinex-derivatives/quotes_ETHF0:USTF0_20260223
["timestamp","ask_amount","ask_price","bid_price","bid_amount"]
[1771855526588,2.6571307,1923.5,1923.1,3.35278603]
[1771855528082,0.0065136,1923.5,1923.1,3.35278603]
[1771855528683,2.68485057,1923.9,1923.3,3.35278603]
[1771855529591,2.68979182,1923.9,1923.3,3.35278603]
[1771855529788,0.00494125,1923.9,1923.5,3.35278603]
[1771855529993,2.6787948,1924.2,1923.5,3.35278603]
[1771855530990,2.68530596,1924.2,1923.5,3.35278603]
[1771855531591,2.68530596,1924.2,1923.1,3.35278603]
[1771855531786,2.67183351,1924.0,1923.1,3.35278603]
[1771855531990,2.67183351,1924.0,1922.8,3.35278603]
[1771855532194,2.66133561,1923.8,1922.8,3.35278603]
[1771855532392,2.66133561,1923.8,1922.9,3.35278603]
[1771855535298,2.61663524,1923.6,1922.9,3.35278603]
[1771855538299,1.52,1923.7,1923.1,3.35278603]
[1771855538502,3.96705308,1923.7,1923.1,3.35278603]
[1771855539597,2.43672677,1923.6,1923.1,3.35278603]
[1771855542305,0.44641011,1923.5,1923.1,3.35278603]
[1771855542603,2.43672677,1923.6,1923.1,3.35278603]
[1771855542805,2.39762187,1923.7,1923.1,3.35278603]
[1771855543007,0.44641011,1923.6,1923.1,3.35278603]
[1771855543210,2.39762187,1923.7,1923.1,3.35278603]
[1771855543404,0.44667457,1923.6,1923.1,3.35278603]
[1771855543721,2.39762187,1923.7,1923.1,3.35278603]
[1771855543899,2.84901404,1923.6,1923.1,3.35278603]
[1771855544101,2.40233943,1923.6,1923.1,3.35278603]
[1771855545707,2.41856766,1923.9,1923.1,3.35278603]
[1771855546011,2.41856766,1923.7,1923.1,3.35278603]
[1771855546210,0.4467073,1923.6,1923.1,3.35278603]
[1771855546407,2.40857388,1923.8,1923.1,3.35278603]
[1771855546607,2.85528029,1923.7,1923.1,3.35278603]
[1771855546808,1.52,1924.1,1923.1,3.35278603]
[1771855546809,2.85513576,1923.6,1923.1,3.35278603]
[1771855547009,2.85513576,1923.5,1923.1,3.35278603]
[1771855547208,2.40842935,1923.5,1923.1,3.35278603]
[1771855548807,2.40842935,1923.5,1922.8,7.44316953]
[1771855549013,2.59236035,1923.3,1922.8,3.10037251]
[1771855549814,3.02957491,1923.2,1922.8,3.10037251]
[1771855550012,2.58270692,1923.2,1922.8,3.10037251]
[1771855551209,2.57848877,1923.8,1922.8,3.10037251]
[1771855551416,3.02534592,1923.7,1922.8,3.10037251]
[1771855551615,2.57848877,1923.5,1922.8,3.10037251]
[1771855551815,3.02192896,1923.4,1922.8,3.10037251]
[1771855552012,2.57507181,1923.8,1923.0,3.10037251]
[1771855559719,2.57507181,1923.8,1923.2,3.10037251]
[1771855566121,2.57507181,1923.8,1923.1,3.10037251]
[1771855569127,2.40433252,1923.7,1923.1,3.10037251]
[1771855575835,2.26845078,1923.9,1923.1,3.36038251]
[1771855576030,2.26845078,1923.9,1923.2,3.10037251]
[1771855580034,2.15954254,1923.7,1923.0,3.02917218]
[1771855586252,2.06723429,1923.9,1923.1,3.02917218]
[1771855586646,2.06723429,1923.9,1923.2,3.02917218]
[1771855590049,1.52,1924.0,1923.4,3.02917218]
[1771855590243,1.52,1924.1,1923.4,3.02917218]
[1771855590648,2.03054319,1924.1,1923.4,3.02917218]
[1771855590851,2.03723685,1924.2,1923.5,3.02917218]
[1771855591553,0.00651116,1924.2,1923.5,3.02917218]
[1771855593657,0.00651116,1924.2,1923.7,3.02917218]
[1771855594752,3.56612837,1924.6,1923.7,3.02917218]
[1771855594961,2.04612837,1924.6,1923.7,3.02917218]
[1771855595555,2.04416468,1924.8,1923.9,3.02917218]
[1771855595860,2.05086537,1924.8,1924.1,3.02917218]
[1771855596162,2.05086537,1924.8,1924.1,3.03502239]
[1771855599864,0.00670069,1924.8,1924.1,3.03502239]
[1771855600757,2.06309132,1924.8,1924.1,3.03502239]
[1771855601162,2.04808662,1924.7,1924.1,3.03502239]
[1771855603267,2.04808662,1924.7,1924.0,3.02917218]
[1771855604367,2.04808662,1924.7,1924.0,3.0344126]
[1771855604569,1.52,1924.6,1924.0,3.0344126]
[1771855604869,2.02830043,1924.5,1924.0,3.0344126]
[1771855605667,2.02830043,1924.5,1923.9,3.02917218]
[1771855605968,2.01115936,1924.2,1923.5,3.02917218]
[1771855606571,2.01115936,1924.2,1923.5,3.03423765]
[1771855612482,2.13001918,1924.3,1923.5,3.03423765]
[1771855615875,3.65001918,1924.3,1923.5,3.03423765]
[1771855616075,1.83976431,1924.2,1923.5,3.03423765]
[1771855620983,1.77986,1924.3,1923.5,3.03423765]
[1771855621185,3.56881815,1924.3,1923.5,3.03423765]
[1771855622282,1.52,1924.3,1923.5,3.03423765]
[1771855622578,1.78664059,1924.3,1923.6,3.03810766]
[1771855622784,1.78679542,1924.6,1923.8,3.03810766]
[1771855623079,3.29908439,1924.7,1923.9,1.76875163]
[1771855623281,1.77908439,1924.7,1924.0,3.03810766]
[1771855623687,3.55308316,1924.8,1924.0,3.03810766]
[1771855624985,1.77010141,1924.3,1923.8,3.03810766]
[1771855625183,3.53885304,1924.2,1923.8,3.03810766]
[1771855625488,1.76244193,1924.3,1923.8,3.03810766]
[1771855626484,1.75906672,1924.1,1923.6,3.03810766]
[1771855640304,1.59626987,1924.0,1923.3,2.77369712]
[1771855641405,1.59626987,1924.0,1923.3,2.77747645]
[1771855643509,1.52,1924.1,1923.3,2.77747645]
[1771855644205,3.11911957,1924.1,1923.3,2.77747645]
[1771855645111,1.59911957,1924.1,1923.3,2.77747645]
[1771855649319,1.53562423,1923.9,1923.3,2.77747645]
[1771855651816,1.52135516,1924.2,1923.5,2.77369712]
[1771855655919,1.46843526,1924.1,1923.5,2.77369712]
[1771855657731,5.81494241,1924.2,1923.5,2.77369712]
[1771855658723,1.45733461,1924.2,1923.5,2.77369712]
[1771855658921,5.81681368,1924.2,1923.5,2.77369712]
[1771855659828,5.87947907,1924.3,1923.7,2.77369712]
[1771855660125,1.52,1924.3,1923.9,2.77369712]
[1771855664527,2.94072773,1924.3,1923.9,2.77369712]
[1771855666031,1.52,1924.3,1923.9,2.77369712]
[1771855666822,1.43521509,1924.3,1923.9,2.77369712]
[1771855667026,7.14165865,1924.6,1924.1,2.77369712]
[1771855667229,2.78217958,1924.6,1924.1,2.77369712]
[1771855674944,3.09437797,1924.7,1924.1,2.77369712]
[1771855679547,2.79545357,1924.5,1923.9,2.68696094]
[1771855679749,2.79048097,1924.3,1923.7,2.68696094]
[1771855680349,2.78364663,1924.5,1923.8,1.76949277]
[1771855680551,2.78364663,1924.5,1923.9,2.68696094]
[1771855694958,4.35947907,1924.7,1923.9,2.68696094]
[1771855695266,7.38727072,1924.8,1923.9,2.68696094]
[1771855696059,7.38727072,1924.8,1924.0,2.68696094]
[1771855696255,3.02779165,1924.8,1924.0,2.68696094]
[1771855696860,2.77933973,1924.7,1924.0,2.68696094]
[1771855698667,2.78660349,1924.5,1923.8,7.00522161]
[1771855698871,7.14608256,1924.4,1923.6,2.66200849]
[1771855699170,2.77819634,1924.3,1923.6,2.66200849]
[1771855702075,2.76939348,1924.4,1923.6,2.66200849]
[1771855702771,2.76312821,1924.6,1923.6,2.66200849]
[1771855703473,2.76312821,1924.6,1923.8,2.68755437]
[1771855705170,4.62596976,1924.8,1923.8,2.68755437]
[1771855705171,2.75772162,1924.7,1923.8,2.68755437]
[1771855705371,2.76442231,1924.8,1924.0,2.68755437]
[1771855707973,0.00670069,1924.8,1924.0,2.68755437]
[1771855710176,0.00670069,1924.8,1924.2,2.68755437]
[1771855712776,2.77819634,1925.1,1924.2,2.68755437]
[1771855713680,2.78457616,1925.1,1924.2,2.68755437]
[1771855714382,2.78457616,1925.1,1924.4,2.68755437]
[1771855714383,0.00637982,1925.1,1924.4,2.68755437]
[1771855714879,2.77819634,1925.5,1924.6,2.68755437]
[1771855715676,2.77819634,1925.4,1924.6,2.68755437]
[1771855715883,2.78468279,1925.4,1924.6,2.68755437]
[1771855717975,3.04440279,1925.4,1924.6,2.68755437]
[1771855719885,2.78468279,1925.4,1924.6,2.68755437]
[1771855726994,2.71773759,1924.8,1924.0,2.68755437]
[1771855736489,2.58785723,1924.6,1924.0,2.68755437]
[1771855740097,2.58781996,1924.4,1923.6,2.65796728]
[1771855741196,2.57674292,1924.2,1923.4,2.65796728]
[1771855741392,2.57674292,1924.4,1923.4,2.65796728]
[1771855743404,4.34542169,1924.4,1923.4,4.42664605]
[1771855743600,2.56248674,1924.3,1923.5,2.65796728]
[1771855752610,2.56248674,1924.3,1923.6,2.65796728]
[1771855765220,2.46473342,1924.2,1923.6,2.65796728]
[1771855766720,2.46473342,1924.1,1923.6,2.65796728]
[1771855766920,2.46473342,1924.1,1923.5,2.66151834]
[1771855767120,2.46473342,1923.9,1923.3,2.66529767]
[1771855767318,2.46922638,1923.9,1923.3,2.66529767]
[1771855774725,0.00449296,1923.9,1923.4,2.66151834]
[1771855777730,2.42678877,1923.9,1923.4,2.66151834]
[1771855779623,2.42678877,1923.9,1923.3,2.66529767]
[1771855782931,0.00449296,1923.9,1923.3,2.66529767]
[1771855783331,2.40080442,1923.8,1923.3,2.66529767]
[1771855783832,2.40080442,1923.7,1923.1,2.66151834]
[1771855784730,2.40080442,1923.7,1923.1,2.66696371]
[1771855785634,2.46473342,1923.5,1923.1,0.00544537]
[1771855785935,2.46473342,1923.3,1923.0,2.49856298]
[1771855786134,2.46473342,1923.3,1922.7,2.66151834]
[1771855786833,2.46473342,1923.3,1922.7,2.66696985]
[1771855787134,2.46473342,1923.5,1922.8,2.66151834]
[1771855787330,2.46473342,1923.7,1923.0,2.66151834]
[1771855789531,2.46473342,1923.7,1923.1,1.76867877]
[1771855789834,2.46473342,1923.7,1923.2,2.64153669]
[1771855799339,2.76688165,1924.1,1923.6,2.64153669]
[1771855800541,2.76688165,1924.2,1923.8,2.64153669]
[1771855801141,2.76688165,1924.4,1924.0,2.64153669]
[1771855801345,2.76688165,1924.5,1924.0,2.64153669]
[1771855801643,2.7717747,1924.5,1924.0,2.64153669]
[1771855801838,2.7717747,1924.5,1924.1,1.76867877]
[1771855802044,2.76688165,1924.7,1924.2,2.64153669]
[1771855802247,2.76688165,1925.0,1924.4,2.64153669]
[1771855802941,2.77317636,1925.0,1924.4,2.64828331]
[1771855804747,3.02665165,1924.9,1924.1,2.64153669]
[1771855805948,3.02665165,1924.9,1924.1,2.64808584]
[1771855808349,1.76700795,1924.8,1923.8,2.64153669]
[1771855808547,2.76688165,1924.5,1923.4,2.64153669]
[1771855808750,2.76688165,1924.3,1923.4,2.64153669]
[1771855809249,2.76688165,1924.3,1923.4,2.6470196]
[1771855816955,2.76688165,1923.9,1923.4,0.00548291]
[1771855817148,2.76688165,1923.7,1922.7,2.64153669]
[1771855818158,2.76688165,1923.7,1922.7,2.64687706]
[1771855821263,2.48778739,1924.1,1922.9,2.47180315]
[1771855823565,2.48778739,1924.1,1923.1,2.47180315]
[1771855824067,2.48778739,1924.1,1923.3,2.47180315]
[1771855827165,2.48778739,1924.2,1923.5,2.47180315]
[1771855827665,2.48778739,1924.4,1923.6,9.35159475]
[1771855827965,2.48778739,1924.4,1923.6,2.47180315]
[1771855835167,2.48778739,1924.5,1923.6,2.47180315]
[1771855835973,2.48778739,1924.5,1923.8,2.47180315]
[1771855836768,2.48778739,1924.8,1923.8,2.47180315]
[1771855840777,2.48778739,1924.8,1924.0,2.47180315]
[1771855844084,2.48778739,1924.8,1923.8,2.47180315]
[1771855844284,2.48778739,1924.6,1923.8,2.47180315]
[1771855854485,2.63926543,1924.4,1923.5,4.33759853]
[1771855854686,2.63926543,1924.2,1923.4,2.52580043]
[1771855855691,2.63926543,1924.2,1923.3,4.33759853]
[1771855855894,2.63926543,1924.2,1923.3,2.52580043]
[1771855856090,2.63926543,1924.0,1923.3,2.52580043]
[1771855861995,2.63926543,1924.3,1923.3,2.52580043]
[1771855862290,2.63926543,1924.4,1923.5,2.52580043]
[1771855862492,2.63926543,1924.6,1923.5,2.52580043]
[1771855862695,2.63926543,1924.6,1923.7,2.52580043]
[1771855862895,2.63926543,1924.8,1923.8,2.52580043]
[1771855863196,2.63926543,1924.8,1923.9,2.52580043]
[1771855865188,2.63926543,1924.8,1924.0,6.72040291]
[1771855865395,2.63926543,1924.8,1924.1,2.52580043]
[1771855865595,2.63926543,1924.8,1924.1,2.53175167]
[1771855867797,0.00629471,1925.0,1924.3,2.52580043]
[1771855867996,2.64556014,1925.0,1924.3,2.52580043]
[1771855875503,0.00629471,1925.0,1924.3,2.52580043]
[1771855875798,2.63926543,1925.2,1924.5,2.52580043]
[1771855876595,2.64438245,1925.2,1924.5,2.52580043]
[1771855879502,2.64438245,1925.2,1924.3,2.4169039]
[1771855881003,2.60159872,1925.4,1924.6,2.4169039]
[1771855881406,2.60159872,1925.4,1924.5,2.91616342]
[1771855881407,2.60159872,1925.4,1924.8,2.4169039]
[1771855882005,2.60813585,1925.4,1924.8,2.4169039]
[1771855883706,2.60813585,1925.4,1924.5,2.4169039]
[1771855886103,2.60813585,1925.4,1924.6,6.90339153]
[1771855886310,2.60813585,1925.4,1924.7,2.4169039]
[1771855898019,2.60159872,1925.2,1924.6,2.4169039]
[1771855901914,2.60159872,1925.2,1924.5,2.4169039]
[1771855902315,2.60159872,1925.3,1924.5,2.4169039]
[1771855902815,2.60159872,1925.3,1924.6,2.4169039]
[1771855903212,0.00653713,1925.4,1924.6,2.4169039]
[1771855903515,2.60813585,1925.4,1924.7,2.4169039]
[1771855905315,2.60813585,1925.4,1924.6,4.33759853]
[1771855905514,2.60813585,1925.4,1924.6,2.4169039]
[1771855907222,2.60159872,1925.3,1924.6,2.4169039]
[1771855907824,2.86132872,1925.3,1924.4,6.76909065]
[1771855908024,2.86132872,1925.3,1924.4,2.43149212]
[1771855908025,2.62090232,1925.2,1924.4,2.43149212]
[1771855908323,2.62090232,1925.1,1924.4,2.43149212]
[1771855917034,2.62090232,1924.9,1924.1,2.43744336]
[1771855917828,2.62090232,1924.9,1924.1,0.00595124]
[1771855919728,2.62090232,1924.7,1924.1,0.00595124]
[1771855921440,1.7680712,1924.6,1923.6,8.53182096]
[1771855921633,2.62090232,1924.3,1923.6,2.43149212]
[1771855922130,2.62090232,1924.3,1923.5,2.43149212]
[1771855922533,2.62090232,1924.3,1923.5,2.43515324]
[1771855923533,2.62090232,1924.1,1923.5,2.43515324]
[1771855923730,2.62090232,1924.1,1923.5,0.00366112]
[1771855938045,2.43697892,1923.9,1923.5,0.00366112]
[1771855938245,2.43697892,1923.7,1923.1,2.44334248]
[1771855939134,2.43697892,1923.7,1923.1,2.44843638]
[1771855940044,2.43697892,1923.7,1923.1,0.0050939]
[1771855943450,2.43697892,1923.7,1922.8,2.63454037]
[1771855943652,2.54294683,1923.5,1922.5,2.63454037]
[1771855943848,2.54294683,1923.3,1922.5,2.63454037]
[1771855944346,2.54294683,1923.3,1922.5,2.64012778]
[1771855946750,2.54294683,1923.1,1922.5,0.00558741]
[1771855946953,2.54294683,1923.1,1922.3,2.63454037]
[1771855947547,2.54294683,1923.1,1921.8,0.26019]
[1771855947548,2.54294683,1923.1,1921.9,2.63454037]
[1771855948056,2.54294683,1922.9,1922.0,2.63454037]
[1771855951454,2.54294683,1923.0,1922.2,2.63454037]
[1771855953651,2.54294683,1923.3,1922.2,2.63454037]
[1771855955254,2.54294683,1923.7,1922.4,2.63454037]
[1771855955656,2.54294683,1923.7,1922.6,2.63454037]
[1771855958062,2.54294683,1923.7,1922.3,0.26013]
[1771855958063,2.54294683,1923.7,1922.8,2.63454037]
[1771855958856,2.54294683,1923.8,1923.0,2.63454037]
[1771855964161,2.54697096,1923.9,1923.0,2.63454037]
[1771855968666,2.54697096,1923.9,1923.2,2.43307139]
[1771855969262,2.50697096,1923.9,1923.1,2.43307139]
[1771855970366,2.51312964,1923.9,1923.1,2.43307139]
[1771855970865,0.00615868,1923.9,1923.1,2.43307139]
[1771855971071,2.65248586,1923.9,1923.3,2.43307139]
[1771855971270,2.65248586,1923.9,1923.3,2.43747107]
[1771855971664,0.00615868,1923.9,1923.3,2.43747107]
[1771855975670,2.64632718,1924.2,1923.3,2.43747107]
[1771855975871,2.64632718,1924.3,1923.5,2.43307139]
[1771855976375,2.64632718,1924.3,1923.7,2.43307139]
[1771855976765,2.65222241,1924.3,1923.7,2.43307139]
[1771855978775,0.00589523,1924.3,1923.7,2.43307139]
[1771855980676,0.00589523,1924.3,1923.7,4.20181942]
[1771855980871,2.64632718,1924.5,1923.8,2.43307139]
[1771855981667,2.64632718,1924.7,1924.1,2.43307139]
[1771855981870,2.65302283,1924.7,1924.1,2.43307139]
[1771855982672,0.00669565,1924.7,1924.1,2.43307139]
[1771855983374,0.00669565,1924.7,1924.3,2.43307139]
[1771855983572,2.64632718,1924.9,1924.3,2.43307139]
[1771855984672,2.65102534,1924.9,1923.9,2.43307139]
[1771855984874,2.91080534,1924.9,1923.9,2.43307139]
[1771855985272,1.76810461,1924.8,1923.9,2.43307139]
[1771855985576,2.64632718,1924.7,1923.9,2.43307139]
[1771855988476,2.64632718,1924.7,1923.3,0.00439968]
[1771855988477,2.64632718,1924.7,1923.5,2.43307139]
[1771855988981,2.64632718,1924.7,1923.6,2.43307139]
[1771855989178,2.90614718,1924.6,1923.5,6.77782208]
[1771855989478,2.64632718,1924.5,1923.4,2.43307139]
[1771855999288,2.60323943,1924.4,1923.4,2.43307139]
[1771856007395,2.60323943,1924.0,1923.3,6.98068798]
[1771856007595,2.60323943,1924.0,1923.3,2.65407983]
[1771856009189,1.76950912,1924.0,1923.3,2.65407983]
[1771856009390,2.60323943,1923.9,1923.3,2.65407983]
[1771856016197,2.60323943,1924.1,1923.5,2.64968015]
[1771856018598,2.60323943,1924.1,1923.7,2.64968015]
[1771856019999,0.1059266,1924.1,1923.7,2.64968015]
[1771856020198,4.59731973,1924.5,1923.7,2.64968015]
[1771856020500,2.60323943,1924.4,1923.7,2.64968015]
[1771856026708,2.60323943,1924.4,1923.8,1.76950912]
[1771856026907,2.60323943,1924.4,1923.9,2.64968015]
[1771856028608,2.56492793,1924.5,1923.9,2.64968015]
[1771856033909,2.56492793,1924.7,1924.0,1.76950912]
[1771856034110,2.56492793,1924.7,1924.1,2.58537268]
[1771856037111,2.56492793,1924.7,1923.9,2.58537268]
[1771856041615,2.56492793,1924.5,1923.8,2.58537268]
[1771856042506,2.56492793,1924.3,1923.8,2.58537268]
[1771856042712,2.56492793,1924.3,1923.5,2.58537268]
[1771856044211,2.56492793,1924.5,1923.6,2.58537268]
[1771856044412,1.76950912,1924.6,1924.0,2.58537268]
[1771856044413,2.56492793,1924.6,1924.0,2.58537268]
[1771856051912,4.35580528,1924.9,1924.0,2.58537268]
[1771856051913,2.56492793,1924.8,1924.0,2.58537268]
[1771856052716,0.00469816,1924.9,1924.0,6.92768418]
[1771856052916,0.00469816,1924.9,1924.2,2.84523268]
[1771856053321,2.56492793,1925.1,1924.2,2.84523268]
[1771856053519,2.56492793,1925.2,1924.4,2.58537268]
[1771856054124,2.56492793,1925.5,1924.6,2.58537268]
[1771856054324,2.57079243,1925.5,1924.6,2.58537268]
[1771856056215,2.56492793,1925.4,1924.6,2.58537268]
[1771856056421,2.56492793,1925.2,1924.5,2.58537268]
[1771856056620,2.56492793,1925.2,1924.0,2.58537268]
[1771856056820,2.56492793,1925.2,1924.1,2.58537268]
[1771856057622,2.56492793,1925.0,1924.1,2.58537268]
[1771856062322,2.48330902,1925.0,1924.1,2.58537268]
[1771856062728,2.45481301,1925.4,1924.3,2.56794252]
[1771856067921,2.45481301,1925.4,1924.5,2.56794252]
[1771856068326,2.46067751,1925.5,1924.7,2.56794252]
[1771856068526,2.46067751,1925.5,1924.7,2.57177463]
[1771856069327,2.45481301,1925.3,1924.7,0.00383211]
[1771856070827,2.45481301,1925.3,1924.7,2.57177463]
[1771856071133,2.45481301,1925.3,1924.7,0.00383211]
[1771856071333,2.45481301,1925.3,1924.3,2.56794252]
[1771856071532,2.45481301,1925.1,1924.3,2.56794252]
[1771856071936,2.46067751,1925.5,1924.6,2.56794252]
[1771856072334,2.46067751,1925.5,1924.6,2.57347764]
[1771856073629,2.72037751,1925.5,1924.6,2.57347764]
[1771856074632,2.45481301,1925.4,1924.6,2.57347764]
[1771856075633,2.45481301,1925.2,1924.6,2.57347764]
[1771856075825,2.46067751,1925.5,1924.8,2.56794252]
[1771856084941,7.65581301,1925.3,1924.4,2.56794252]
[1771856085143,2.45481301,1925.2,1924.4,2.56794252]
[1771856085336,2.45481301,1925.1,1924.0,2.56794252]
[1771856086144,2.45481301,1925.1,1924.0,2.57262039]
[1771856088642,2.45481301,1925.1,1924.2,2.49180139]
[1771856090842,2.56310848,1925.3,1924.2,2.49180139]
[1771856092949,2.56310848,1925.4,1924.4,2.49180139]
[1771856093544,2.56897298,1925.5,1924.6,2.49180139]
[1771856095043,0.0058645,1925.5,1924.8,2.49180139]
[1771856097647,0.0058645,1925.5,1925.0,2.49180139]
[1771856097948,2.56310848,1925.8,1925.0,2.49180139]
[1771856098341,2.56310848,1925.8,1924.8,6.76672491]
[1771856098342,2.56310848,1925.8,1925.2,2.49180139]
[1771856098745,2.56685178,1925.8,1925.2,2.49180139]
[1771856101842,2.56685178,1925.8,1924.8,2.49180139]
[1771856102046,2.82649178,1925.8,1924.8,2.49180139]
[1771856104654,2.82649178,1925.8,1924.5,2.49180139]
[1771856104850,2.56310848,1925.5,1924.5,2.49180139]
[1771856105049,2.56310848,1925.5,1924.2,40.8]
[1771856105050,2.56310848,1925.1,1924.2,2.49180139]
[1771856105455,2.56310848,1924.9,1924.2,2.49180139]
[1771856105953,2.56310848,1924.9,1924.1,2.49180139]
[1771856106454,2.56310848,1924.7,1923.8,2.49180139]
[1771856107453,2.56310848,1924.7,1923.8,2.49641616]
[1771856110052,2.56310848,1925.0,1923.8,2.49641616]
[1771856114252,2.56310848,1925.0,1924.0,2.49180139]
[1771856114457,2.56310848,1925.2,1924.2,2.49180139]
[1771856117364,2.56310848,1925.4,1924.2,2.49180139]
[1771856117563,2.56310848,1925.4,1924.4,2.75161139]
[1771856117862,2.56310848,1925.4,1924.5,6.62613231]
[1771856118062,2.56310848,1925.4,1924.6,2.66021303]
[1771856118261,2.45789854,1925.5,1924.6,2.66021303]
[1771856119166,2.71753854,1925.7,1924.6,2.66021303]
[1771856121464,2.45789854,1925.7,1924.6,2.66021303]
[1771856121655,2.45789854,1925.7,1924.8,2.62616192]
[1771856122659,2.40280804,1925.5,1924.4,2.62616192]
[1771856124560,2.40280804,1925.3,1924.4,2.62616192]
[1771856133066,2.40280804,1925.3,1924.6,2.62616192]
[1771856133661,2.40280804,1925.1,1924.3,2.62616192]
[1771856142376,2.40280804,1925.2,1924.3,2.62616192]
[1771856143679,2.40280804,1925.1,1924.3,2.62616192]
[1771856144071,2.66253804,1925.1,1924.3,2.62616192]
[1771856146176,2.40280804,1925.1,1924.3,2.88599192]
[1771856149983,2.64222658,1925.2,1924.4,2.42354596]
[1771856152384,2.64222658,1925.2,1924.5,2.42354596]
[1771856161401,2.64222658,1925.1,1924.2,6.76544619]
[1771856161594,2.64222658,1925.0,1924.2,2.42354596]
[1771856161995,2.64222658,1924.9,1924.2,2.42354596]
[1771856167097,2.90198658,1924.9,1924.2,2.42354596]
[1771856167296,2.90198658,1924.9,1924.0,2.42354596]
[1771856168704,2.64222658,1924.5,1923.8,0.00461477]
[1771856171707,2.64222658,1924.5,1923.6,2.42354596]
[1771856172708,2.64222658,1924.5,1923.6,2.42867823]
[1771856183619,2.41257419,1924.2,1923.3,2.52177207]
[1771856183823,2.41257419,1924.1,1922.9,2.52177207]
[1771856184519,2.4166359,1924.1,1922.9,2.52728889]
[1771856185316,0.25987,1924.0,1922.9,2.52728889]
[1771856185514,2.41257419,1923.9,1922.9,2.52728889]
[1771856186716,2.41257419,1923.7,1922.9,2.52728889]
[1771856188017,2.41257419,1923.7,1922.9,0.00551682]
[1771856188219,2.41257419,1923.7,1922.8,2.42067359]
[1771856189019,2.60241312,1923.5,1922.8,2.42067359]
[1771856189225,2.60241312,1923.5,1922.8,2.42681762]
[1771856190222,2.60241312,1923.5,1922.8,0.00614403]
[1771856190417,2.60241312,1923.5,1922.8,2.4344965]
[1771856211932,0.25992,1923.6,1922.8,2.4344965]
[1771856212238,2.62373878,1923.7,1922.8,2.4344965]
[1771856213235,2.62373878,1923.7,1922.9,2.4989385]
[1771856213930,4.35101299,1924.0,1923.1,2.4989385]
[1771856214136,2.62373878,1924.0,1923.1,2.4989385]
[1771856214837,2.62373878,1923.9,1923.1,2.4989385]
[1771856215136,2.62373878,1923.6,1922.9,2.4989385]
[1771856215737,2.62373878,1923.6,1922.8,2.50508253]
[1771856218336,2.62373878,1923.5,1922.8,2.50508253]
[1771856219635,2.62373878,1923.3,1922.4,6.84083873]
[1771856219833,2.88371878,1923.2,1922.4,2.4989385]
[1771856220031,2.88371878,1923.2,1922.1,2.4989385]
[1771856220236,2.62373878,1922.9,1922.1,2.4989385]
[1771856220633,2.62373878,1922.9,1922.1,2.50330002]
[1771856226045,2.62373878,1922.7,1922.1,2.50330002]
[1771856226241,2.62803239,1922.7,1922.1,2.50330002]
[1771856226448,2.62373878,1922.5,1921.7,2.4989385]
[1771856227143,2.62373878,1922.3,1921.5,2.4989385]
[1771856227342,2.62373878,1922.3,1921.5,2.50413159]
[1771856232243,0.00429361,1922.7,1921.5,2.50413159]
[1771856232244,2.62373878,1922.6,1921.5,2.50413159]
[1771856233252,2.62373878,1922.6,1921.7,2.4989385]
[1771856234352,2.62803239,1922.7,1921.7,2.4989385]
[1771856235952,2.62803239,1922.7,1921.6,0.26019]
[1771856235953,0.00429361,1922.7,1921.9,2.4989385]
[1771856236652,0.00429361,1922.7,1922.1,2.4989385]
[1771856237149,1e-08,1922.7,1922.1,2.4989385]
[1771856237454,2.62373878,1923.5,1922.2,6.66900907]
[1771856237654,2.62373878,1923.5,1922.3,2.4989385]
[1771856238251,2.55479864,1923.3,1922.3,2.4989385]
[1771856238454,2.55479864,1922.9,1921.8,2.58486541]
[1771856238651,2.55479864,1922.7,1921.8,2.58486541]
[1771856248755,2.70947873,1922.9,1922.0,2.51080923]
[1771856250749,2.44944873,1922.9,1922.0,2.51080923]
[1771856253656,2.44944873,1923.1,1922.1,2.51080923]
[1771856257064,2.44944873,1923.1,1922.3,2.51080923]
[1771856257460,2.44944873,1923.2,1922.3,2.51080923]
[1771856261964,2.44944873,1922.7,1922.0,2.51080923]
[1771856265568,2.44944873,1922.8,1922.0,2.51080923]
[1771856268869,2.56675381,1922.1,1921.5,0.00519309]
[1771856269166,2.56675381,1922.1,1921.3,6.45319797]
[1771856269167,2.56675381,1921.9,1921.3,0.078818]
[1771856269873,2.56675381,1921.9,1921.0,2.58561974]
[1771856270164,2.56675381,1921.9,1921.0,2.59158627]
[1771856271161,2.82689381,1922.0,1921.0,2.59158627]
[1771856273176,2.82689381,1922.0,1921.2,2.58561974]
[1771856273177,2.56675381,1922.0,1921.2,2.58561974]
[1771856275370,2.57137982,1922.1,1921.2,2.58561974]
[1771856277272,2.83151982,1922.1,1921.2,2.58561974]
[1771856280674,2.56675381,1921.8,1921.0,2.59158627]
[1771856281672,2.56675381,1921.8,1921.0,0.00596653]
[1771856281872,2.56675381,1921.6,1921.0,0.00596653]
[1771856282067,2.56675381,1921.6,1920.8,2.58561974]
[1771856283073,2.56675381,1921.6,1920.8,2.59116507]
[1771856297584,0.26018,1921.7,1920.8,2.59116507]
[1771856297786,2.46010813,1921.9,1920.8,2.59116507]
[1771856299293,2.46010813,1921.9,1921.0,2.4147021]
[1771856300687,2.88714453,1922.1,1921.0,2.4147021]
[1771856301088,2.88714453,1922.1,1921.2,2.4147021]
[1771856305200,2.62701453,1922.1,1921.2,2.4147021]
[1771856309404,2.62238852,1922.0,1921.2,2.4147021]
[1771856315909,2.54831153,1921.8,1921.1,2.60846281]
[1771856319807,0.26019,1921.6,1920.8,2.57844317]
[1771856320107,2.42507199,1921.5,1920.8,2.57844317]
[1771856324006,2.58094883,1921.3,1920.2,2.51196513]
[1771856324212,2.58094883,1921.1,1920.2,2.51196513]
[1771856325013,2.58094883,1921.1,1920.2,2.51672176]
[1771856332735,2.59281095,1920.9,1920.2,2.51672176]
[1771856333226,0.26028,1921.0,1920.2,2.51672176]
[1771856333416,2.85309095,1921.0,1920.2,2.51672176]
[1771856336222,2.49961825,1921.2,1920.2,2.51672176]
[1771856337428,0.26026,1921.1,1920.2,2.51672176]
[1771856337629,2.49961825,1920.8,1920.2,0.00475663]
[1771856337835,2.49961825,1920.6,1919.5,2.64516569]
[1771856338232,2.49961825,1920.4,1919.5,2.64516569]
[1771856338527,2.49961825,1920.9,1919.5,2.64516569]
[1771856338835,2.49961825,1920.5,1919.5,2.6496712]
[1771856340831,2.49961825,1920.3,1919.5,2.6496712]
[1771856341232,0.26036,1920.4,1919.5,2.6496712]
[1771856341432,6.40394,1920.7,1919.5,2.6496712]
[1771856341433,2.59259237,1920.7,1919.5,2.6496712]
[1771856343441,2.59259237,1920.7,1919.7,2.56428026]
[1771856346140,2.46054026,1920.9,1919.7,2.56428026]
[1771856346642,2.46054026,1920.9,1919.9,2.39885185]
[1771856347042,0.00392498,1920.9,1920.1,2.39885185]
[1771856347839,2.46054026,1920.9,1920.1,2.39885185]
[1771856348641,2.72084026,1920.9,1920.1,2.39885185]
[1771856348841,2.72084026,1920.9,1919.6,2.39885185]
[1771856349245,2.72084026,1920.9,1919.7,2.39885185]
[1771856349639,2.72084026,1920.9,1919.9,2.39885185]
[1771856349840,0.00392498,1920.9,1920.1,2.39885185]
[1771856350051,2.46054026,1920.9,1920.1,2.39885185]
[1771856351942,2.45661528,1921.4,1920.3,2.39885185]